{"text_format":"1","workbook":"xlsx","n_sheets":2,"sheets":["特別養護老人ホームきたきゅう州","触らないでください。"],"not_rendered":{"charts":0,"images":0,"macros":1,"external_links":0,"defined_names":1,"comments":0,"pivot_tables":0},"unopened":[],"bounds":{"document_bytes":16777216,"sheet_cells":100000,"rows_first":2000,"rows_last":500,"rows_between":2000,"halvings":0,"cell_chars":16384,"cell_head_chars":4096},"cells_cut":0,"cells_raw":0,"read":"whole","date_system":"1900"}

{"sheet":"特別養護老人ホームきたきゅう州","index":0,"n_rows":81,"n_cols":34,"rows_kept":81,"cut":false,"hidden":false,"merged":[[36,6,36,17],[32,5,32,6],[32,7,32,8],[33,5,33,6],[33,7,33,8],[35,6,35,8],[28,6,28,17],[24,5,24,6],[24,7,24,8],[25,5,25,6],[25,7,25,8],[27,6,27,8],[5,1,5,2],[59,11,59,19],[19,6,19,17],[2,1,2,2],[4,10,4,11],[2,10,2,11],[2,12,2,19],[2,3,2,9],[4,12,4,19],[4,3,4,9],[3,1,3,2],[3,3,3,19],[14,5,14,6],[14,7,14,8],[18,6,18,8],[15,5,15,6],[15,7,15,8],[61,11,61,12],[4,1,4,2],[5,3,5,19],[60,11,60,12],[59,2,59,10],[52,5,52,6],[52,7,52,8],[51,5,51,6],[51,7,51,8],[47,5,47,6],[47,7,47,8],[41,5,41,6],[46,5,46,6],[46,7,46,8],[41,7,41,8],[40,5,40,6],[40,7,40,8],[61,2,61,3],[60,2,60,3],[56,7,56,8],[57,7,57,8],[60,4,60,10],[61,4,61,10],[63,11,63,19],[66,11,66,12],[65,11,65,12],[64,11,64,12],[62,11,62,12],[62,2,62,3],[63,2,63,10],[64,4,64,10],[65,4,65,10],[66,4,66,10],[62,4,62,10],[0,0,0,20],[79,6,79,7],[80,6,80,7],[76,6,76,7],[75,6,75,12],[71,6,71,7],[72,6,72,7],[60,13,60,19],[61,13,61,19],[62,13,62,19],[64,13,64,19],[65,13,65,19],[66,13,66,19],[66,2,66,3],[65,2,65,3],[64,2,64,3]]}
["令和7年度 福岡県地域密着型施設等整備補助金 事業量調査票(北九州市所管分)"]
[null,null,null,null,null,null,null,null,null,null,null,null,null,null,null,null,null,null,null,null,"          "]
[null,"法人名",null,"社会福祉法人きたきゅう",null,null,null,null,null,null,"事業所名",null,"特別養護老人ホームきたきゅう"]
[null,"所在地",null,"北九州市小倉北区城内１番１号"]
[null,"担当者名",null,"きたきゅう　太郎",null,null,null,null,null,null,"連絡先",null,"999-999-9999"]
[null,"Email",null," ho-kaigo@city.kitakyushu.lg.jp"]
[]
[null,"（注１）全ての事業が補助の対象になるとは限りません。",null,null,null,null,null,null,null,null,null,null,null,null,null,null,null,null,null,null,null,null,null,null,null,null,null,null,null,null,null,null,null,"特別養護老人ホーム"]
[null,null,"交付要綱をご確認いただき、補助対象施設等に該当するかご確認ください。",null,null,null,null,null,null,null,null,null,null,null,null,null,null,null,null,null,null,null,null,null,null,null,null,null,null,null,null,null,null,"介護老人保健施設"]
[null,"(注２）申請希望のある事業のみご記入ください。",null,null,null,null,null,null,null,null,null,null,null,null,null,null,null,null,null,null,null,null,null,null,null,null,null,null,null,null,null,null,null,"介護医療院"]
[null,"(注３）複数の事業所を回答する場合は、エクセルを分けて提出してください。",null,null,null,null,null,null,null,null,null,null,null,null,null,null,null,null,null,null,null,null,null,null,null,null,null,null,null,null,null,null,null,"特定施設入居者生活介護の指定を受けるケアハウス"]
[]
[null,"１．介護施設等の創設を条件に行う広域型施設の大規模修繕・耐震化整備事業",null,null,null,null,null,null,null,null,null,null,null,null,null,null,null,null,null,null,null,null,null,null,null,null,null,null,null,null,null,null,null,"小規模多機能型居宅介護事業所"]
[]
[null,"（１）","対象施設の定員",null,null,null,null,null,null,"人"]
[null,"（２）","工事費用見込額",null,null,null,null,null,null,"千円"]
[]
[null,"（３）","創設を行う予定（市町村から採択された）の介護施設（※１）"]
[null,null,"創設予定日",null,null,null,null,null,null,"←記入例　2023/04/01"]
[null,null,"創設を行う施設種別"]
[null,null,"※１　創設を行う予定の介護施設等が無い場合、補助の対象となりません。"]
[]
[null,"２．災害レッドゾーンに所在する老朽化した広域型介護施設の移転改築整備事業"]
[]
[null,"（１）","対象施設の定員",null,null,null,null,null,null,"人"]
[null,"（２）","工事費用見込額",null,null,null,null,null,null,"千円"]
[null,"（３）","移転改築を行う予定の介護施設"]
[null,null,"移転改築予定日",null,null,null,null,null,null,"←記入例　2023/04/01"]
[null,null,"移転改築を行う施設種別"]
[]
[null,"３．災害イエローゾーンに所在する老朽化した広域型介護施設の改築整備事業"]
[]
[null,"（１）","対象施設の定員",null,null,null,null,null,null,"人"]
[null,"（２）","工事費用見込額",null,null,null,null,null,null,"千円"]
[null,"（３）","移転改築を行う予定の介護施設"]
[null,null,"移転改築予定日",null,null,null,null,null,null,"←記入例　2023/04/01"]
[null,null,"移転改築を行う施設種別"]
[]
[null,"４．介護施設等の大規模修繕の際にあわせて行う介護ロボット・ICTの導入に必要な経費支援事業"]
[]
[null,"（１）","対象施設の定員",null,null,null,null,null,null,"人"]
[null,"（２）","工事費用見込額",null,null,null,null,null,null,"千円"]
[null,null,"※２　介護ロボット・ICTの導入と関連性がある大規模修繕を行わない場合は、補助の対象となりません。"]
[]
[null,"５．特別養護老人ホームに併設されるショートステイ多床室のプライバシー保護改修支援事業"]
[]
[null,"（１）","対象施設の定員",null,null,null,null,null,null,"人"]
[null,"（２）","工事費用見込額",null,null,null,null,null,null,"千円"]
[]
[null,"６．介護施設等の看取り環境の整備事業"]
[]
[null,"（１）","対象施設の定員",null,null,null,null,null,null,"人"]
[null,"（２）","工事費用見込額",null,null,null,null,null,null,"千円"]
[]
[null,"７．介護職員の宿舎施設整備事業"]
[]
[null,"（１）","宿泊定員数",null,null,null,null,null,null,"人"]
[null,"（２）","工事費用見込額",null,null,null,null,null,null,"千円"]
[null,"（３）","対象となる職員が勤務する施設"]
[null,null,"対象施設①",null,null,null,null,null,null,null,null,"対象施設②"]
[null,null,"施設種別",null,null,null,null,null,null,null,null,"施設種別"]
[null,null,"施設名",null,null,null,null,null,null,null,null,"施設名"]
[null,null,"所在地",null,null,null,null,null,null,null,null,"所在地"]
[null,null,"対象施設③",null,null,null,null,null,null,null,null,"対象施設④"]
[null,null,"施設種別",null,null,null,null,null,null,null,null,"施設種別"]
[null,null,"施設名",null,null,null,null,null,null,null,null,"施設名"]
[null,null,"所在地",null,null,null,null,null,null,null,null,"所在地"]
[]
[null,"８．介護施設等における新型コロナウイルス感染拡大防止対策支援事業"]
[]
[null,"○簡易陰圧装置の設置について"]
[null,"（１）","設置予定台数",null,null,null,null,null,"台"]
[null,"（２）","設置見込額",null,null,null,null,null,"千円"]
[]
[null,"○感染拡大防止のためのゾーニング環境等の整備について"]
[null,"（１）","ゾーニング種別"]
[null,"（２）","工事費用見込額",null,null,null,null,null,"千円"]
[]
[null,"○多床室の個室化について"]
[null,"（１）","整備床数",null,null,null,null,null,"床"]
[null,"（２）","工事費用見込額",null,null,null,null,null,"千円"]

{"sheet":"触らないでください。","index":1,"n_rows":3,"n_cols":42,"rows_kept":3,"cut":false,"hidden":true,"merged":[[0,11,0,14],[0,0,1,0],[0,7,0,10],[0,6,1,6],[0,1,1,1],[0,2,1,2],[0,3,1,3],[0,4,1,4],[0,5,1,5],[0,15,0,18],[0,38,0,39],[0,40,0,41],[0,19,0,25],[0,26,0,27],[0,28,0,29],[0,30,0,35],[0,36,0,37]]}
["ファイル名","法人名","事業所名","所在地","担当者","連絡先","アドレス","創設に伴う大規模修繕",null,null,null,"災害レッドゾーン",null,null,null,"災害イエローゾーン",null,null,null,"ICTロボット",null,null,null,null,null,null,"プライバシー改修",null,"看取り環境",null,"宿舎整備",null,null,null,null,null,"陰圧装置",null,"ゾーニング",null,"多床室の個室化"]
[null,null,null,null,null,null,null,"対象定員","工事費","創設予定日","創設種別","対象定員","工事費","移転予定日","創設種別","対象定員","工事費","移転予定日","創設種別","対象定員","対象定員","工事費","創設予定日","創設種別","対象定員","工事費","対象定員","工事費","対象定員","工事費","宿舎定員","工事費","施設名①","施設名②","施設名③","施設名④","設置数","工事費","種別","工事費","整備床数","工事費"]
[{"$f":"\"【\"&B3&\"_\"&C3&\"】\"&\"令和５年度事業量調査(北九州市所管分)\"","v":"【社会福祉法人きたきゅう_特別養護老人ホームきたきゅう】令和５年度事業量調査(北九州市所管分)"},{"$f":"+特別養護老人ホームきたきゅう州!D3","v":"社会福祉法人きたきゅう"},{"$f":"+特別養護老人ホームきたきゅう州!M3","v":"特別養護老人ホームきたきゅう"},{"$f":"+特別養護老人ホームきたきゅう州!D4","v":"北九州市小倉北区城内１番１号"},{"$f":"+特別養護老人ホームきたきゅう州!D5","v":"きたきゅう　太郎"},{"$f":"+特別養護老人ホームきたきゅう州!M5","v":"999-999-9999"},{"$f":"+特別養護老人ホームきたきゅう州!D6","v":" ho-kaigo@city.kitakyushu.lg.jp"},{"$f":"+特別養護老人ホームきたきゅう州!H15","v":0},{"$f":"+特別養護老人ホームきたきゅう州!H16","v":0},{"$f":"+特別養護老人ホームきたきゅう州!G19","v":"00:00:00"},{"$f":"+特別養護老人ホームきたきゅう州!G20","v":0},{"$f":"+特別養護老人ホームきたきゅう州!H25","v":0},{"$f":"+特別養護老人ホームきたきゅう州!H26","v":0},{"$f":"+特別養護老人ホームきたきゅう州!G28","v":"00:00:00"},{"$f":"+特別養護老人ホームきたきゅう州!G29","v":0},{"$f":"+特別養護老人ホームきたきゅう州!H33","v":0},{"$f":"+特別養護老人ホームきたきゅう州!H34","v":0},{"$f":"+特別養護老人ホームきたきゅう州!G36","v":"00:00:00"},{"$f":"+特別養護老人ホームきたきゅう州!G37","v":0},{"$f":"+特別養護老人ホームきたきゅう州!H41","v":0},{"$f":"+特別養護老人ホームきたきゅう州!M15","v":0},{"$f":"+特別養護老人ホームきたきゅう州!M16","v":0},{"$f":"+特別養護老人ホームきたきゅう州!L19","v":"00:00:00"},{"$f":"+特別養護老人ホームきたきゅう州!L20","v":0},{"$f":"+特別養護老人ホームきたきゅう州!M41","v":0},{"$f":"+特別養護老人ホームきたきゅう州!H42","v":0},{"$f":"+特別養護老人ホームきたきゅう州!H47","v":0},{"$f":"+特別養護老人ホームきたきゅう州!H48","v":0},{"$f":"+特別養護老人ホームきたきゅう州!H52","v":0},{"$f":"+特別養護老人ホームきたきゅう州!H53","v":0},{"$f":"+特別養護老人ホームきたきゅう州!H57","v":0},{"$f":"+特別養護老人ホームきたきゅう州!H58","v":0},{"$f":"+特別養護老人ホームきたきゅう州!E62","v":0},{"$f":"+特別養護老人ホームきたきゅう州!N62","v":0},{"$f":"+特別養護老人ホームきたきゅう州!E66","v":0},{"$f":"+特別養護老人ホームきたきゅう州!N66","v":0},{"$f":"+特別養護老人ホームきたきゅう州!G72","v":0},{"$f":"+特別養護老人ホームきたきゅう州!G73","v":0},{"$f":"+特別養護老人ホームきたきゅう州!G76","v":0},{"$f":"+特別養護老人ホームきたきゅう州!G77","v":0},{"$f":"+特別養護老人ホームきたきゅう州!G80","v":0},{"$f":"+特別養護老人ホームきたきゅう州!G81","v":0}]